Cogmind - Beta 13 @@@ ROGUE MODE // 2024.04.01 @ 17:21:33 Player: YenYu Result: Destroyed by D-53 Grenadier with Mini Grenade Launcher Performance ------------- Evolutions (0) 0 Regions Visited (2) 400 Robots Destroyed (22) 110 Value Destroyed (520) 520 Prototype IDs (0) 0 Alien Tech Used (0) 0 Bonus (0) 0 TOTAL SCORE: 1030 Bonus ------- None Cogmind --------- Core Integrity 0/250 Matter 245/300 Energy 92/100 System Corruption 0% Temperature Cool (0) Movement Core (200) Ox3 Location -10/Mines Parts ------- > --- POWER (1) -------- (None) > --- PROPULSION (2) --- (None) > --- UTILITY (2) ------ Heat Sink Medium Storage Unit > --- WEAPON (2) ------- Small Laser > --- INVENTORY (10) --- Light Ion Engine Light Treads Light Treads Heat Sink High-capacity Matter Pod (200) Sensor Array Seismic Detector Mining Laser Peak State ------------ > --- POWER ------------ Light Nuclear Core > --- PROPULSION ------- Light Treads Light Treads > --- UTILITY ---------- Heat Sink Medium Storage Unit > --- WEAPON ----------- Small Laser Particle Gun > --- INVENTORY -------- Light Ion Engine Light Treads Light Treads Heat Sink High-capacity Matter Pod Sensor Array Seismic Detector Small Laser Grenade Launcher Mining Laser [Rating: 11] Favorites ----------- Power Ion Engine Engine Ion Engine Power Core Light Nuclear Core Propulsion Light Treads Treads Light Treads Utility Heat Sink Device Heat Sink Storage Small Storage Unit Weapon Small Laser Energy Gun Small Laser Launcher Grenade Launcher Special Weapon Mining Laser Build | -11 -10 -10 ------- Run | Yrd Mat Min Slots Evolved . | . . . Power . | . . . Propulsion . | . . . Utility . | . . . Weapon . | . . . Parts Attached 28 | 9 15 4 Power 3 | 1 2 . Engine 2 | 1 1 . Core 1 | . 1 . Reactor . | . . . Propulsion 4 | 2 2 . Treads 4 | 2 2 . Leg . | . . . Wheel . | . . . Hover . | . . . Flight . | . . . Utility 7 | 2 5 . Device 5 | 1 4 . Storage 2 | 1 1 . Processor . | . . . Hackware . | . . . Protection . | . . . Artifact . | . . . Weapon 14 | 4 6 4 Energy Gun 10 | 3 4 3 Energy Cannon . | . . . Ballistic Gun . | . . . Ballistic Cannon . | . . . Launcher 1 | . . 1 Special Weapon 3 | 1 2 . Impact Weapon . | . . . Slashing Weapon . | . . . Piercing Weapon . | . . . Special Melee Weapon . | . . . Unidentified Prototypes . | . . . Parts Lost 6 | . 1 5 Power 1 | . . 1 Propulsion 2 | . . 2 Utility . | . . . Weapon 3 | . 1 2 Highest Loss Streak 5 | . 1 5 To Critical Strikes . | . . . Average Slot Usage (%) 99 | . 100 96 Engine 12 | . 13 . Core 1 | . . 11 Treads 27 | . 28 26 Device 14 | . 14 14 Storage 14 | . 14 14 Energy Gun 27 | . 27 23 Naked Turns . | . . . Heaviest Build 22 | 14 19 22 Greatest Support 40 | 40 40 40 Greatest Overweight (x) . | . . . Average Overweight (x) . | . . . Largest Inventory Capacity 10 | 8 10 10 Average Capacity 8 | 7 8 10 Most Carried 10 | 5 10 10 Average Carried 6 | 2 7 9 Final Capacity 10 | 8 10 10 Final Carried 10 | 3 10 8 Class Distribution -------------------- 86% | Mutant 13% | Scavenger-Mutant Dominant Class ---------------- Mutant | -10/Materials Scavenger-Mutant | -10/Mines Resources | -11 -10 -10 ----------- Run | Yrd Mat Min Matter Collected 655 | 290 345 20 Remotely . | . . . Salvage Created 748 | 139 493 116 Parts 39 | 5 23 11 Haulers Intercepted 1 | . 1 . Recyclers Shooed 3 | 1 1 1 Parts Field Recycled . | . . . Retrieved Matter . | . . . Parts Self-Destructed . | . . . Prevented . | . . . Kills | -11 -10 -10 ------- Run | Yrd Mat Min Combat Hostiles Destroyed 13 | . 8 5 Guns 8 | . 7 1 AOE 3 | . . 3 Classes Destroyed 9 | 2 4 3 Builder 1 | . . 1 Tunneler 2 | 2 . . Hauler 1 | . 1 . Recycler 2 | 1 1 . Operator 2 | . 2 . Watcher 1 | . 1 . Swarmer 2 | . . 2 Grunt 10 | . 8 2 Demolisher 1 | . . 1 Best Kill Streak 4 | 3 2 4 Combat Bots Only 3 | . 2 3 Max Kills in Single Turn 2 | 1 1 2 Gunslinging . | . . . Exploded 1 | . . 1 Melee . | . . . Uniques/NPCs Destroyed . | . . . Combat | -11 -10 -10 -------- Run | Yrd Mat Min Hostile Shots Fired 89 | . 59 30 Missed 21 | . 14 7 Damage Taken 1070 | . 533 537 Core 250 | . 99 151 Absorbed by Shields . | . . . Core Remaining (%) 100 | 100 . . Volleys Fired 101 | 12 70 19 Largest 2 | 2 2 2 Hottest 105 | 100 100 105 Shots Fired 192 | 22 134 36 Gun 179 | 20 129 30 Cannon . | . . . Launcher 6 | . . 6 Special 7 | 2 5 . Kinetic . | . . . Thermal 186 | 22 134 30 Explosive 6 | . . 6 Electromagnetic . | . . . Robot Hit Streak 11 | 6 10 11 Robot Miss Streak 4 | 2 4 3 Penetration Max . | . . . Secondary Targets . | . . . Shots Hit Robots 124 | 12 83 29 Core Hits 44 | 4 27 13 Critical Kills . | . . . Critical Parts Destroyed . | . . . Critical Strikes 3 | . 3 . Burn 3 | . 3 . Melee Attacks . | . . . Impact . | . . . Slashing . | . . . Piercing . | . . . Sneak Attacks . | . . . Combat Hostiles . | . . . Follow-up Attacks . | . . . Damage Inflicted 1611 | 147 999 465 Guns 1462 | 147 999 316 Cannons . | . . . Explosions 149 | . . 149 Melee . | . . . Ramming . | . . . Kinetic . | . . . Thermal 1462 | 147 999 316 Explosive 149 | . . 149 Electromagnetic . | . . . Impact . | . . . Slashing . | . . . Piercing . | . . . Highest Corruption . | . . . Average Corruption . | . . . Corruption Purged . | . . . Corruption Blocked . | . . . Overload Shots . | . . . Overflow Damage . | . . . Projectiles . | . . . Explosions . | . . . Melee . | . . . Knockbacks . | . . . Impact . | . . . Kinetic . | . . . Secondary . | . . . Self-Inflicted Damage 40 | . . 40 Shots 1 | . . 1 Rammed . | . . . Targets Rammed . | . . . Kicked . | . . . Crushed . | . . . Highest Temperature 282 | 180 282 144 Average Temperature 61 | 73 57 60 Received Heat Transfer 375 | . 279 96 Effects 1 | . 1 . Energy Bleed 1 | . 1 . Siege Activations . | . . . Robots Corrupted . | . . . Combat Hostiles . | . . . Parts Fried . | . . . Impact Corruptions . | . . . Robots Melted 2 | . 1 1 Combat Hostiles 2 | . 1 1 Parts Melted 6 | . 4 2 Heat Transferred 4041 | 384 2863 794 Parts Sabotaged . | . . . Parts Stolen . | . . . Parts Stripped . | . . . Power Chain Reactions . | . . . Alert | -11 -10 -10 ------- Run | Yrd Mat Min Peak Influence 194 | 15 194 185 Initial 62 | . 9 62 Average 64 | 5 65 115 Maximum Alert Level . | . . . Low Security (%) 100 | 100 100 100 Level 1 . | . . . Level 2 . | . . . Level 3 . | . . . Level 4 . | . . . Level 5 . | . . . High Security . | . . . Max Security . | . . . Squads Dispatched 3 | . 3 . Investigation 1 | . 1 . Extermination . | . . . Reinforcement 2 | . 2 . Assault . | . . . Garrison . | . . . Intercept . | . . . Searches Triggered . | . . . Construction Impeded . | . . . Haulers Reinforced . | . . . Active Scanning Responses . | . . . Cargo Convoy Interrupts . | . . . Stealth | -11 -10 -10 --------- Run | Yrd Mat Min Distress Signals . | . . . Communications Jammed . | . . . Distress Signals . | . . . Times Spotted 26 | . 20 6 Peak Tracking Total 4 | . 3 4 Tactical Retreats 6 | . 6 . Traps | -11 -10 -10 ------- Run | Yrd Mat Min Traps Triggered 3 | . 3 . Indirectly . | . . . Trap Hack Attempts . | . . . Triggered . | . . . Disarmed . | . . . Reprogrammed . | . . . Reused . | . . . Traps Extracted . | . . . Installed . | . . . Triggered . | . . . Machines | -11 -10 -10 ---------- Run | Yrd Mat Min Machines Disabled . | . . . Max in Single Turn . | . . . Machines Repaired . | . . . Machines Dismantled . | . . . Machines Sabotaged . | . . . Overloaded Fab Kills . | . . . Hacking | -11 -10 -10 --------- Run | Yrd Mat Min Machines Accessed 4 | . 4 . Terminals 3 | . 3 . Fabricators . | . . . Repair Stations . | . . . Recycling Units 1 | . 1 . Scanalyzers . | . . . Garrison Access . | . . . Total Hacks 10 | . 10 . Successful 5 | . 5 . Failed 5 | . 5 . Catastrophic 2 | . 2 . Database Lockouts . | . . . Manual 7 | . 7 . Terminals 9 | . 9 . Fabricators . | . . . Repair Stations . | . . . Recycling Units 1 | . 1 . Scanalyzers . | . . . Garrison Access . | . . . Terminal Hacks 4 | . 4 . Record 1 | . 1 . Branch Access Points 1 | . 1 . Transport Status 1 | . 1 . Recall Investigation 1 | . 1 . Fabricator Hacks . | . . . Repair Station Hacks . | . . . Recycling Unit Hacks 1 | . 1 . Retrieve Components 1 | . 1 . Scanalyzer . | . . . Garrison Access Hacks . | . . . Unauthorized Hacks . | . . . Terminals . | . . . Fabricators . | . . . Repair Stations . | . . . Recycling Units . | . . . Scanalyzers . | . . . Garrison Access . | . . . Data Cores Recovered . | . . . Used . | . . . Hacking Detections 4 | . 4 . Full Trace Events 2 | . 2 . Feedback Events . | . . . Feedback Blocked . | . . . Robot Schematics Acquired . | . . . Robots Built . | . . . Authchips . | . . . Time . | . . . Total Robot Build Rating . | . . . Part Schematics Acquired . | . . . Parts Built . | . . . Authchips . | . . . Time . | . . . Total Part Build Rating . | . . . Parts Repaired . | . . . Time . | . . . Parts Recycled . | . . . Recycled Matter . | . . . Retrieved Matter . | . . . Retrieved Components 2 | . 2 . Parts Scanalyzed . | . . . Part Schematics Acquired . | . . . Parts Damaged . | . . . Bothacking | -11 -10 -10 ------------ Run | Yrd Mat Min Used RIF Installer . | . . . Robots Hacked . | . . . Non-combat . | . . . Combat . | . . . Robot Hacks Applied . | . . . Relay Couplers Released . | . . . Fabnet Peak Effective % . | . . . Robots Rewired . | . . . Allies Hacked . | . . . Hacks Repelled . | . . . Allies | -11 -10 -10 -------- Run | Yrd Mat Min Total Allies . | . . . Largest Group . | . . . Highest-Rated Group . | . . . Highest-Rated Ally . | . . . Total Orders . | . . . Ally Attacks . | . . . Total Damage . | . . . Kills . | . . . Allies Corrupted . | . . . Allies Melted . | . . . Intel | -11 -10 -10 ------- Run | Yrd Mat Min Robot Analysis Total . | . . . Derelict Logs Recovered . | . . . Drone Launches . | . . . Drone Recoveries . | . . . Exploration | -11 -10 -10 ------------- Run | Yrd Mat Min Turns Passed 1185 | 122 941 122 Spaces Moved 410 | 44 327 39 Core 5 | 5 . . Treads 405 | 39 327 39 Legs . | . . . Wheels . | . . . Hover . | . . . Flight . | . . . Fastest Speed 50 | 50 160 160 Average Speed 158 | 147 160 160 Slowest Speed 160 | 160 160 160 Overloaded Moves . | . . . Propulsion Burnouts . | . . . Robots Hopped . | . . . Cave-ins Triggered . | . . . Exploration Rate (%) 18 | 4 40 12 Regions Visited 2 Branch Regions 1 Pre-discovered Areas . | . . . Known Exits Taken 1 | . 1 . Unknown Exits Taken 1 | 1 . . Scrap Searched . | . . . Spaces Dug 6 | 2 4 . Terrain Destroyed 41 | 2 5 34 Melee . | . . . Projectile 7 | 2 5 . AOE 34 | . . 34 Terrain Rammed . | . . . Walls Destroyed . | . . . Machines Disabled . | . . . Actions | -11 -10 -10 --------- Run | Yrd Mat Min Total 741 | 75 602 64 Wait 174 | . 174 . Move 408 | 43 326 39 Hop . | . . . Pick Up 19 | 10 9 . Fast Attach 1 | . 1 . Attach 15 | 8 5 2 Detach 4 | 1 3 . Swap 12 | 1 9 2 Drop 7 | . 5 2 Fire 101 | 12 70 19 Melee . | . . . Ram . | . . . Kick . | . . . Crush . | . . . Escape Stasis . | . . . Rewire . | . . . Trap . | . . . Miscellaneous . | . . . Route ------- -11/Scrapyard -10/Materials (discovered 2 exits: [*Mat] / *Min) -10/Mines History --------- Turn | Location | Event 17 | -11/Scrapyard | Discovered new exit (range 16) 123 | -11/Scrapyard | Entered Materials 223 | -10/Materials | Discovered new exit (range 13) 267 | -10/Materials | Discovered new exit (range 3) 306 | -10/Materials | Build established: Mutant 925 | -10/Materials | Identified exit to Mines 1064 | -10/Materials | Entered Mines 1075 | -10/Mines | Core integrity fell below 50% 1138 | -10/Mines | Assembled infested the area 1143 | -10/Mines | Assisted by a Guerilla fighting off Assembled 1183 | -10/Mines | Core integrity fell below 20% 1186 | -10/Mines | Destroyed by D-53 Grenadier with Mini Grenade Launcher Last Messages --------------- 01126_ Destroyed Tractor Beam. 01138_ ALERT: Infestation in the mines, dispatching Demolisher response squad. 01143_ A derelict emerges from the shadows: "You need to get out of here! I've been tracking a group of Assembled to figure out where they're coming from, and they're closing on this area, come on!" 01151_ T-07 Excavator is excavating. 01164_ S-10 Pest destroyed. 01166_ Lgt. Nuclear Core destroyed. 01167_ S-10 Pest destroyed. 01167_ U-05 Engineer destroyed. 01169_ The unstable cave ceiling collapses. 01173_ Lgt. Treads destroyed. 01173_ Particle Gun destroyed. 01174_ Destroyed Shock Absorption System. 01174_ D-53 Grenadier destroyed. 01178_ The unstable cave ceiling collapses. 01182_ Grenade Launcher destroyed. 01182_ Lgt. Treads destroyed. 01183_ The unstable cave ceiling collapses. Map ----- +----------------------------------------------------+ | ?????????????????????????????????????????? | | ?????????????????????????????????????????? | | ?????????????????????????????????????????? | | ?????????????????????????????????????????? | | ?????????#######?????????????????????????? | | ???????### #?????????????????????????? | | ??????## ## #?????????????????????????? | | ??????# ### #?????????????????????????? | | ??????# %### #?????????????????????????? | | ??????##[% ## #?????????????????????????? | | ???????## # ### #?????????????????????? | | ????????## #?????????????????????? | | ?????????## #######?????????????????????? | | ??????????## #???????????????????????????? | | ???????????# #???????????????????????????? | | ???????????# ######??????????????????????? | | ???????????# #??????????????????????? | | ???????????###### #??????????????????????? | | ????????????????# #?????????? ??????????? | | ????????????????# #???????? ??????????? | | ??????????????### ###???? ??????????? | | ?????????????## #### = % ?????????? | | ????????????## % ??????????? | | ????????????# # !#?????????????? | | ?????????#### = #?????????????? | | ????# @ [ [ ##?????????????? | | ?????????##### #??????????????? | | ????????????# # #???????????? | | ????????????# d #???????????? | | ????????????## ## ?????????? | | ?????????????# # ##?? ??????????? | | ?????????????#### t#???? ??????????? | | ????????????????# ##????? ??????????? | | ????????????????###??????? ???????????? | | ??????????????????????????? ???????????? | | ???????????????????????????? ????????????? | | ?????????????????????????????????????????? | | ?????????????????????????????????????????? | | ?????????????????????????????????????????? | | ?????????????????????????????????????????? | | ?????????????????????????????????????????? | | ?????????????????????????????????????????? | | ?????????????????????????????????????????? | | | | | | | | | | | | | | | +----------------------------------------------------+ Best States ------------- Heat Dissipation 35 Energy Generation 14 Energy Capacity 250 Matter Stores 300 Matter Capacity 300 Sight Range 16 Robot Scan Range 14 Terrain Scan Density 10 Evasion (%) 40 Recoil Reduction 2 Item Schematics ----------------- None Robot Schematics ------------------ None Fabricated ------------ Nothing Alien Tech Used ----------------- None Achievements -------------- None Challenges ------------ None Game ------ Seed PhaseStasisBox Manual? 0 Play Time 00:16:57 Cumulative 12.5 hours Start 2024.04.01 @ 17:06:31 End 2024.04.01 @ 17:21:33 Sessions 1 Manual Loads 0 Difficulty Rogue Special Mode None Game No. 15 Rogue 15 Adventurer 0 Explorer 0 Win Type - Total 0 Types 0/0/0/0/0/0/0/0/0 Lore% 7 Gallery% 19 Achievement% 16 Wizard Run 0 Options --------- Layout 0 ASCII 0 Keyboard 0 Movement Mouse Keybinds 0 Fullscreen 1 Font 24/Smallcaps Map View 76x50 Zoom Use 0% Tactical HUD 1 Map Filters NONE Filters NONE Steam 1 RUN: e57000a4-a154-438d-90a4-83f8cfd23332